bitfinex/quotes_SOLUSD_20250617
["timestamp","ask_amount","ask_price","bid_price","bid_amount"]
[1750184771247,0.42648471,146.22,146.19,11.79023949]
[1750184772719,0.42648471,146.22,146.16,27.73456826]
[1750184772941,0.42648471,146.22,146.19,11.79023949]
[1750184773139,7.26553478,146.22,146.19,11.79023949]
[1750184773344,19.05577427,146.22,146.18,11.79023949]
[1750184773523,28.5,146.21,146.18,11.79023949]
[1750184773843,0.28432314,146.2,146.18,11.79023949]
[1750184774439,28.5,146.21,146.19,11.79023949]
[1750184775320,28.5,146.21,146.2,11.79023949]
[1750184775321,28.78432314,146.21,146.2,11.79023949]
[1750184775729,180.73780387,146.25,146.2,11.79023949]
[1750184776070,180.73780387,146.25,146.22,11.79023949]
[1750184776071,147.9,146.24,146.22,11.79023949]
[1750184776249,147.9,146.24,146.23,11.79023949]
[1750184776622,147.9,146.24,146.21,11.79023949]
[1750184776947,176.4,146.24,146.22,11.79023949]
[1750184777145,176.4,146.24,146.18,1.6092]
[1750184777338,195.02838508,146.24,146.2,11.79023949]
[1750184777723,176.4,146.24,146.21,11.79023949]
[1750184778142,176.4,146.24,146.23,11.79023949]
[1750184778329,176.68432314,146.24,146.22,11.79023949]
[1750184779026,148.18432314,146.24,146.21,11.79023949]
[1750184780043,155.0224059,146.24,146.21,11.79023949]
[1750184780455,148.18432314,146.24,146.21,11.79023949]
[1750184781361,148.18432314,146.24,146.19,18.64964886]
[1750184781529,148.18432314,146.24,146.22,11.79023949]
[1750184782566,148.18432314,146.24,146.21,11.79023949]
[1750184782725,148.18432314,146.24,146.22,11.79023949]
[1750184783033,148.18432314,146.24,146.22,6.87979363]
[1750184783632,148.18432314,146.24,146.19,18.64964886]
[1750184783841,148.18432314,146.24,146.22,6.87979363]
[1750184784519,148.18432314,146.24,146.21,6.87979363]
[1750184784724,0.42648471,146.23,146.16,8.35581303]
[1750184784944,28.90648471,146.23,146.2,6.87979363]
[1750184785859,0.28432314,146.23,146.21,6.87979363]
[1750184786227,0.28432314,146.23,146.17,25.49085747]
[1750184786228,0.28432314,146.23,146.2,6.87979363]
[1750184786941,7.26508917,146.23,146.19,6.87979363]
[1750184787458,28.76432314,146.23,146.2,6.87979363]
[1750184787754,28.76432314,146.23,146.21,6.87979363]
[1750184787961,28.76432314,146.23,146.22,6.87979363]
[1750184788131,0.28432314,146.23,146.21,6.87979363]
[1750184788758,176.38,146.24,146.21,6.87979363]
[1750184789053,147.9,146.24,146.22,6.87979363]
[1750184789253,147.9,146.24,146.23,6.87979363]
[1750184791075,147.9,146.24,146.2,6.83989703]
[1750184791076,147.9,146.24,146.21,18.64964886]
[1750184791246,147.9,146.24,146.23,6.87979363]
[1750184791449,147.9,146.24,146.22,6.87979363]
[1750184791643,147.9,146.24,146.19,18.64964886]
[1750184791849,147.9,146.24,146.22,6.87979363]
[1750184792559,147.9,146.24,146.19,18.64964886]
[1750184792760,147.9,146.24,146.22,6.87979363]
[1750184795240,147.9,146.24,146.21,6.87979363]
[1750184795663,28.46,146.23,146.21,6.87979363]
[1750184795849,28.46,146.23,146.2,6.87979363]
[1750184796958,28.46,146.23,146.18,18.64964886]
[1750184796959,148.32648471,146.22,146.18,6.87979363]
[1750184797341,28.48,146.21,146.18,6.87979363]
[1750184797550,28.48,146.21,146.16,1.4760194]
[1750184797748,28.48,146.21,146.18,6.87979363]
[1750184798259,7.16411677,146.2,146.16,8.35581303]
[1750184798750,0.28432314,146.18,146.16,1.4760194]
[1750184799137,7.16411677,146.18,146.16,1.4760194]
[1750184799451,35.62411677,146.17,146.16,1.4760194]
[1750184799644,28.74432314,146.17,146.16,1.4760194]
[1750184800054,31.26988337,146.17,146.16,1.4760194]
[1750184800254,38.29183857,146.17,146.16,1.4760194]
[1750184800770,45.13337038,146.17,146.16,1.4760194]
[1750184801077,42.60762745,146.17,146.16,1.4760194]
[1750184801247,45.13340129,146.17,146.16,1.4760194]
[1750184801663,53.55019492,146.17,146.16,1.4760194]
[1750184801967,65.32005015,146.17,146.16,1.4760194]
[1750184802142,72.19984378,146.17,146.16,1.4760194]
[1750184802366,0.42648471,146.13,146.09,5.68020838]
[1750184802572,0.42648471,146.1,146.09,5.68020838]
[1750184802765,28.88648471,146.1,146.09,5.68020838]
[1750184803072,44.1861053,146.1,146.09,5.68020838]
[1750184804170,35.75111167,146.1,146.09,5.68020838]
[1750184804362,42.6309053,146.1,146.09,5.68020838]
[1750184804563,28.90648471,146.1,146.09,5.68020838]
[1750184804775,35.78627834,146.1,146.09,5.68020838]
[1750184805187,28.90648471,146.1,146.09,5.68020838]
[1750184805396,0.28432314,146.1,146.09,5.68020838]
[1750184805699,13.16237865,146.15,146.09,12.56000201]
[1750184805987,0.28432314,146.13,146.1,6.87979363]
[1750184806293,28.52,146.12,146.1,6.87979363]
[1750184806665,0.28432314,146.13,146.1,6.87979363]
[1750184806861,0.28432314,146.13,146.09,5.68020838]
[1750184806862,28.5,146.13,146.11,11.81057241]
[1750184807106,28.5,146.13,146.09,5.68020838]
[1750184807107,0.28432314,146.13,146.12,11.81057241]
[1750184807394,0.14216157,146.14,146.12,11.81057241]
[1750184807698,28.64216157,146.14,146.11,11.81057241]
[1750184808187,28.64216157,146.14,146.09,17.49078079]
[1750184808188,0.28432314,146.12,146.09,17.49078079]
[1750184808396,28.78432314,146.12,146.09,17.49078079]
[1750184808769,28.78432314,146.12,146.1,11.81057241]
[1750184809780,28.78432314,146.12,146.09,17.49078079]
[1750184810172,9.49694882,146.11,146.09,17.49078079]
[1750184810694,9.49694882,146.11,146.1,11.81057241]
[1750184811488,9.49694882,146.11,146.09,17.49078079]
[1750184812299,6.83900971,146.22,146.1,30.46022127]
[1750184812470,28.5,146.21,146.17,11.81057241]
[1750184812669,35.33951334,146.21,146.17,11.81057241]
[1750184812870,37.98986803,146.2,146.18,11.81057241]
[1750184813104,0.28432314,146.19,146.18,11.81057241]
[1750184813414,9.20506835,146.19,146.13,18.64964886]
[1750184813692,9.20506835,146.19,146.17,11.81057241]
[1750184814268,9.20506835,146.19,146.18,11.81057241]
[1750184815673,9.20506835,146.19,146.18,37.30110237]
[1750184816094,9.20506835,146.19,146.18,30.46022127]
[1750184816998,9.20506835,146.19,146.16,11.81057241]
[1750184818174,9.20506835,146.19,146.13,25.49286152]
[1750184818480,9.20506835,146.19,146.17,11.81057241]
[1750184819379,26.0,146.17,146.16,11.81057241]
[1750184819700,26.0,146.17,146.11,7.8681]
[1750184819701,26.0,146.16,146.11,7.8681]
[1750184819883,26.0,146.16,146.15,11.81057241]
[1750184820085,26.0,146.16,146.11,14.71225374]
[1750184820086,26.0,146.16,146.11,33.3619026]
[1750184820292,63.88895502,146.18,146.15,11.81057241]
[1750184820591,26.0,146.14,146.09,5.68020838]
[1750184820800,12.09489555,146.13,146.09,5.68020838]
[1750184820972,11.81057241,146.12,146.09,5.68020838]
[1750184821382,7.12766868,146.13,146.09,17.49078079]
[1750184821383,12.23705712,146.13,146.09,17.49078079]
[1750184821580,0.28432314,146.13,146.1,11.81057241]
[1750184821787,9.54648493,146.13,146.1,11.81057241]
[1750184821977,28.20028618,146.13,146.09,17.49078079]
[1750184822901,9.54648493,146.13,146.09,5.68020838]
[1750184823071,9.54648493,146.13,146.1,11.81057241]
[1750184823587,9.54648493,146.13,146.09,5.68020838]
[1750184823588,21.35705734,146.13,146.09,17.49078079]
[1750184824873,11.81057241,146.12,146.09,5.68020838]
[1750184825074,16.38973191,146.13,146.09,5.68020838]
[1750184825315,11.81057241,146.12,146.09,5.68020838]
[1750184825676,147.9,146.11,146.09,5.68020838]
[1750184826479,159.71057241,146.11,146.09,5.68020838]
[1750184827879,11.81057241,146.1,146.09,5.68020838]
[1750184828389,159.71057241,146.11,146.09,5.68020838]
[1750184828590,147.9,146.11,146.09,5.68020838]
[1750184828995,159.71057241,146.11,146.09,5.68020838]
[1750184829801,147.9,146.1,146.09,5.68020838]
[1750184830000,159.71057241,146.1,146.09,5.68020838]
[1750184830878,147.9,146.1,146.09,5.68020838]
[1750184831910,159.71057241,146.1,146.09,5.68020838]
[1750184832207,47.56168408,146.1,146.09,5.68020838]
[1750184833992,66.21133294,146.1,146.09,5.68020838]
[1750184834211,68.71987986,146.1,146.09,5.68020838]
[1750184834508,26.0,146.06,145.98,11.81057241]
[1750184834700,0.42648471,146.07,145.98,11.81057241]
[1750184834701,11.81057241,146.02,145.98,11.81057241]
[1750184835298,11.81057241,146.02,145.97,25.50014547]
[1750184835499,37.40252321,146.03,145.97,18.64964886]
[1750184835698,11.81057241,146.01,145.97,18.64964886]
[1750184835898,11.81057241,146.01,145.97,37.3109064]
[1750184836142,11.81057241,146.02,145.97,37.3109064]
[1750184836312,11.81057241,146.02,145.97,18.64964886]
[1750184836517,11.81057241,146.01,145.97,18.64964886]
[1750184836994,11.81057241,146.01,145.97,30.46022127]
[1750184837816,11.81057241,146.01,145.97,18.64964886]
[1750184838023,11.81057241,146.01,145.97,30.46022127]
[1750184838210,11.81057241,145.99,145.94,6.85212758]
[1750184838517,26.0,146.0,145.95,18.64964886]
[1750184838518,11.81057241,145.98,145.95,18.64964886]
[1750184838723,11.81057241,145.99,145.95,11.81057241]
[1750184839102,11.81057241,145.99,145.93,25.50216801]
[1750184839320,11.81057241,145.98,145.93,25.50216801]
[1750184839505,11.81057241,145.98,145.93,30.46022127]
[1750184839704,11.81057241,145.97,145.93,18.64964886]
[1750184840026,6.85029698,145.98,145.93,18.64964886]
[1750184840323,11.81057241,145.95,145.92,18.64964886]
[1750184840620,35.79691832,145.98,145.91,6.3]
[1750184840819,11.81057241,145.98,145.92,18.64964886]
[1750184840997,28.52,145.97,145.92,18.64964886]
[1750184841194,11.81057241,145.98,145.93,11.81057241]
[1750184841398,11.81057241,145.98,145.93,18.66273876]
[1750184841622,40.33057241,145.99,145.94,11.81057241]
[1750184841808,26.0,146.0,145.94,11.81057241]
[1750184842006,11.81057241,145.98,145.94,11.81057241]
[1750184842309,11.81057241,145.96,145.92,30.46022127]
[1750184842506,11.81057241,145.96,145.91,13.15325652]
[1750184842707,11.81057241,145.95,145.91,24.96382893]
[1750184842908,11.81057241,145.95,145.91,6.3]
[1750184843113,11.81057241,145.95,145.91,18.11057241]
[1750184843302,11.81057241,145.95,145.91,11.81057241]
[1750184843505,11.81057241,145.95,145.91,18.64964886]
[1750184843723,11.81057241,145.95,145.91,30.46022127]
[1750184843924,11.81057241,145.95,145.91,18.64964886]
[1750184844095,11.81057241,145.95,145.91,11.81057241]
[1750184844439,11.81057241,145.94,145.9,18.664582]
[1750184844632,11.81057241,145.94,145.9,11.81057241]
[1750184844931,11.81057241,145.93,145.89,18.64964886]
[1750184845145,26.0,145.95,145.92,11.81057241]
[1750184845351,0.42648471,145.94,145.88,12.92729277]
[1750184845497,11.81057241,145.91,145.87,3.0193194]
[1750184845818,7.27867146,145.94,145.88,11.81057241]
[1750184845819,11.81057241,145.92,145.88,11.81057241]
[1750184846020,35.51434162,145.94,145.87,1.4760194]
[1750184846021,26.0,145.91,145.87,1.4760194]
[1750184846224,11.81057241,145.89,145.87,1.4760194]
[1750184846428,12.23705712,145.88,145.87,1.4760194]
[1750184846909,0.42648471,145.88,145.87,1.4760194]
[1750184847429,12.23705712,145.88,145.87,1.4760194]
[1750184847630,26.0,145.91,145.87,1.4760194]
[1750184847827,26.0,145.91,145.87,10.78659181]
[1750184848013,37.81057241,145.91,145.87,10.78659181]
[1750184848207,0.42648471,145.9,145.85,6.85635927]
[1750184848406,0.42648471,145.9,145.86,11.81057241]
[1750184849215,11.81057241,145.89,145.84,25.50633234]
[1750184849618,11.81057241,145.89,145.85,11.81057241]
[1750184849933,0.42648471,145.9,145.85,11.81057241]
[1750184850134,11.81057241,145.89,145.85,11.81057241]
[1750184850339,0.42648471,145.9,145.85,11.81057241]
[1750184850509,0.42648471,145.9,145.86,11.81057241]
[1750184850709,0.42648471,145.9,145.85,11.81057241]
[1750184850911,0.42648471,145.9,145.85,10.31057241]
[1750184851165,12.23705712,145.9,145.85,10.31057241]
[1750184851512,11.81057241,145.88,145.84,30.46022127]
[1750184851710,0.42648471,145.87,145.83,7.37344345]
[1750184851910,0.42648471,145.87,145.84,11.81057241]
[1750184852117,0.42648471,145.87,145.83,7.37344345]
[1750184852118,12.23705712,145.87,145.83,17.53811586]
[1750184852320,11.81057241,145.86,145.83,5.72754345]
[1750184853055,12.23705712,145.87,145.83,17.53811586]
[1750184853352,0.42648471,145.87,145.83,5.72754345]
[1750184853509,7.28218391,145.87,145.83,5.72754345]
[1750184853712,0.42648471,145.87,145.83,5.72754345]
[1750184854029,0.42648471,145.85,145.83,5.72754345]
[1750184854349,12.23705712,145.85,145.83,5.72754345]
[1750184854525,12.23705712,145.84,145.83,5.72754345]
[1750184855258,0.42648471,145.84,145.83,5.72754345]
[1750184857123,28.62,145.86,145.83,5.72754345]
[1750184857837,0.28432314,145.86,145.83,5.72754345]
[1750184858028,12.09489555,145.86,145.83,5.72754345]
[1750184858340,0.14216157,145.85,145.83,5.72754345]
[1750184858719,11.45273398,145.85,145.83,5.72754345]
[1750184859039,0.28432314,145.86,145.83,5.72754345]
[1750184859235,11.81057241,145.85,145.83,5.72754345]
[1750184859627,0.28432314,145.86,145.83,5.72754345]
[1750184860317,11.81057241,145.85,145.83,5.72754345]
[1750184860632,0.42648471,145.86,145.83,5.72754345]
[1750184860820,11.81057241,145.85,145.83,5.72754345]
[1750184861941,0.42648471,145.86,145.83,5.72754345]
[1750184862716,12.23705712,145.86,145.83,5.72754345]
[1750184862921,7.34306322,145.86,145.83,5.72754345]
[1750184863134,0.14216157,145.84,145.83,5.72754345]
[1750184864225,7.05874008,145.84,145.83,5.72754345]
[1750184864820,6.91657851,145.85,145.83,5.72754345]
[1750184865537,7.34306322,145.86,145.83,5.72754345]
[1750184865850,6.91657851,145.85,145.83,5.72754345]
[1750184866352,0.14216157,145.84,145.83,5.72754345]
[1750184866649,7.34306322,145.84,145.83,5.72754345]
[1750184867021,35.98306322,145.84,145.83,5.72754345]
[1750184867429,42.30306322,145.84,145.83,5.72754345]
[1750184868329,35.38648471,145.84,145.83,5.72754345]
[1750184869030,42.30306322,145.84,145.83,5.72754345]
[1750184869549,49.15989262,145.84,145.83,5.72754345]
[1750184872547,26.0,145.86,145.83,5.72754345]
[1750184872745,28.62,145.86,145.83,12.64412196]
[1750184872951,6.91657851,145.87,145.83,5.72754345]
[1750184872952,35.53657851,145.87,145.83,5.72754345]
[1750184873124,0.14216157,145.86,145.83,5.72754345]
[1750184873443,35.53657851,145.87,145.83,5.72754345]
[1750184873747,0.14216157,145.86,145.83,5.72754345]
[1750184874048,35.53657851,145.87,145.83,5.72754345]
[1750184874617,6.91657851,145.86,145.83,5.72754345]
[1750184874844,11.85866031,145.85,145.83,5.72754345]
[1750184875548,0.42648471,145.86,145.83,5.72754345]
[1750184875736,0.14216157,145.86,145.83,17.58620376]
[1750184876137,0.14216157,145.86,145.83,5.72754345]
[1750184876328,0.14216157,145.86,145.83,17.58620376]
[1750184877030,12.00082188,145.86,145.83,5.72754345]
[1750184877232,0.14216157,145.86,145.83,5.72754345]
[1750184877447,12.00082188,145.86,145.83,5.72754345]
[1750184877645,0.14216157,145.86,145.83,17.58620376]
[1750184877842,26.0,145.89,145.85,11.85866031]
[1750184878085,13.42366031,145.92,145.88,11.85866031]
[1750184878376,11.85866031,145.91,145.87,11.85866031]
[1750184878669,0.14216157,145.9,145.83,29.7280296]
[1750184878872,0.14216157,145.9,145.87,11.85866031]
[1750184879173,11.85866031,145.91,145.87,11.85866031]
[1750184879474,12.00082188,145.91,145.87,11.85866031]
[1750184879950,0.14216157,145.9,145.87,11.85866031]
[1750184880673,28.62,145.91,145.87,11.85866031]
[1750184880856,38.00082188,145.93,145.85,6.1764]
[1750184881047,0.14216157,145.92,145.89,11.85866031]
[1750184881652,13.21198464,145.95,145.91,11.85866031]
[1750184881653,18.21866031,145.95,145.91,11.85866031]
[1750184881965,28.62,145.96,145.91,11.85866031]
[1750184882170,11.85866031,145.95,145.91,11.85866031]
[1750184882477,11.85866031,145.94,145.9,11.85866031]
[1750184882690,11.85866031,145.93,145.88,11.85866031]
[1750184882891,0.14216157,145.93,145.89,11.85866031]
[1750184883070,27.5765,145.97,145.92,11.85866031]
[1750184883071,35.47087879,145.97,145.92,11.85866031]
[1750184883391,26.0,145.98,145.87,8.45889513]
[1750184883392,28.62,145.98,145.94,11.85866031]
[1750184883574,2.50947002,145.97,145.94,11.85866031]
[1750184884075,28.62,145.98,145.94,11.85866031]
[1750184884294,40.47866031,145.98,145.94,11.85866031]
[1750184884654,0.14216157,145.97,145.94,11.85866031]
[1750184885086,0.14216157,145.99,145.96,11.85866031]
[1750184885548,11.85866031,146.0,145.96,11.85866031]
[1750184885750,0.42648471,145.99,145.96,11.85866031]
[1750184885990,2.93828663,145.99,145.96,11.85866031]
[1750184886572,2.51180192,145.99,145.96,11.85866031]
[1750184886769,26.0,145.98,145.96,11.85866031]
[1750184887098,26.0,145.96,145.93,6.85260056]
[1750184887388,54.88432314,146.0,145.95,11.85866031]
[1750184887549,2.51345246,145.99,145.95,11.85866031]
[1750184887759,14.37211277,145.99,145.95,11.85866031]
[1750184888166,11.85866031,145.99,145.95,11.85866031]
[1750184888368,2.51376782,145.99,145.96,11.85866031]
[1750184888574,44.99234547,146.0,145.96,11.85866031]
[1750184888867,8.90252321,146.03,145.98,11.85866031]
[1750184889051,49.38118352,146.03,145.94,25.61975854]
[1750184889253,40.51300853,146.02,145.98,11.85866031]
[1750184889478,37.85866031,146.02,145.98,11.85866031]
[1750184890379,37.85866031,146.02,145.98,18.70882453]
[1750184890380,26.0,146.02,145.98,18.70882453]
[1750184890576,37.85866031,146.02,145.98,11.85866031]
[1750184890776,11.85866031,146.01,145.97,11.85866031]
[1750184891160,11.85866031,146.01,145.96,6.85100218]
[1750184891362,11.85866031,146.01,145.97,11.85866031]
[1750184892764,11.85866031,146.01,145.97,18.70926663]
[1750184892965,156.80252321,146.03,145.98,11.85866031]
[1750184893179,11.85866031,146.02,145.97,6.85060632]
[1750184893387,11.85866031,146.02,145.98,11.85866031]
[1750184893677,11.85866031,146.02,145.97,6.85060632]
[1750184893678,11.85866031,146.02,145.97,18.70926663]
[1750184893886,11.85866031,146.02,145.98,11.85866031]
[1750184894587,163.65043925,146.03,145.97,18.70926663]
[1750184894774,11.85866031,146.01,145.97,18.70926663]
[1750184894970,11.85866031,146.01,145.97,6.85060632]
[1750184895281,11.85866031,145.98,145.94,8.48923267]
[1750184895599,11.85866031,145.99,145.94,20.34789298]
[1750184895888,28.6,146.01,145.92,6.527]
[1750184895889,26.42648471,146.0,145.92,6.527]
[1750184896222,11.85866031,145.96,145.92,6.527]
[1750184896492,0.42648471,145.97,145.9,20.35798257]
[1750184896786,28.62,145.98,145.92,11.85866031]
[1750184896961,28.62,145.98,145.91,18.64964886]
[1750184897282,11.85866031,145.94,145.9,20.35798257]
[1750184898187,7.27749495,145.97,145.9,8.49932226]
[1750184898479,40.47866031,145.98,145.92,11.85866031]
[1750184898480,11.85866031,145.96,145.92,11.85866031]
[1750184898783,28.62,145.98,145.93,11.85866031]
[1750184899158,11.85866031,145.97,145.93,11.85866031]
[1750184899676,37.85866031,145.99,145.94,11.85866031]
[1750184899868,11.85866031,145.99,145.94,11.85866031]
[1750184900181,11.85866031,145.98,145.94,6.85205229]
[1750184901585,11.85866031,145.98,145.94,18.7107126]
[1750184901879,26.0,145.98,145.95,11.85866031]
[1750184902270,37.85866031,145.98,145.94,18.7107126]
[1750184903075,11.85866031,145.95,145.91,6.36]
[1750184903274,11.85866031,145.94,145.91,6.36]
[1750184903465,0.14216157,145.98,145.91,18.21866031]
[1750184903679,11.85866031,145.94,145.91,6.36]
[1750184903877,11.85866031,145.94,145.91,13.21347508]
[1750184904064,11.85866031,145.94,145.91,6.36]
[1750184904476,11.85866031,145.93,145.91,6.36]
[1750184904670,26.0,145.96,145.91,13.2133527]
[1750184904875,11.85866031,145.94,145.91,13.2133527]
[1750184905285,26.0,145.96,145.91,25.07201301]
[1750184905469,11.85866031,145.95,145.91,25.07201301]
[1750184905869,26.0,145.96,145.91,25.07201301]
[1750184906074,37.85866031,145.96,145.92,11.85866031]
[1750184906587,11.85866031,145.95,145.91,13.2133527]
[1750184906972,11.85866031,145.95,145.91,25.07201301]
[1750184907882,11.85866031,145.99,145.92,18.64964886]
[1750184908064,11.85866031,145.99,145.95,11.85866031]
[1750184908913,11.85866031,145.99,145.94,18.64964886]
[1750184909184,11.85866031,145.99,145.95,11.85866031]
[1750184909388,11.85866031,145.99,145.94,18.64964886]
[1750184909578,11.85866031,145.98,145.94,30.50830917]
[1750184910372,0.14216157,146.0,145.94,30.50830917]
[1750184910571,11.35866031,145.99,145.94,30.50830917]
[1750184910989,11.35866031,145.99,145.96,6.8511921]
[1750184911491,37.85866031,146.01,145.97,11.85866031]
[1750184912592,11.85866031,146.02,145.98,11.85866031]
[1750184912976,156.80252321,146.03,146.01,11.85866031]
[1750184913176,156.80252321,146.03,146.02,18.70703724]
[1750184913381,182.80252321,146.03,146.02,18.70703724]
[1750184913692,156.80252321,146.03,146.02,18.70703724]
[1750184913906,8.90252321,146.03,146.02,18.70703724]
[1750184914074,8.90252321,146.03,146.02,6.84837693]
[1750184914279,8.90252321,146.03,146.02,18.70703724]
[1750184915002,8.90252321,146.03,146.02,6.84837693]
[1750184915205,8.90252321,146.03,146.02,18.70703724]
[1750184915589,8.90252321,146.03,146.01,6.84865423]
[1750184916613,20.76118352,146.03,146.01,6.84865423]
[1750184917305,20.76118352,146.03,145.99,18.64964886]
[1750184917612,8.90252321,146.03,145.99,30.50830917]
[1750184917801,8.90252321,146.03,146.0,11.85866031]
[1750184918407,8.90252321,146.03,145.99,18.64964886]
[1750184918588,8.90252321,146.03,146.0,11.85866031]
[1750184919088,8.90252321,146.03,146.0,6.84900986]
[1750184919290,20.76118352,146.03,145.99,11.85866031]
[1750184919691,11.85866031,146.02,145.99,6.84978423]
[1750184920006,8.90252321,146.03,146.0,11.85866031]
[1750184920207,8.90252321,146.03,145.99,23.9742448]
[1750184920420,8.90252321,146.03,146.0,30.50830917]
[1750184920626,20.76118352,146.03,145.99,6.84978423]
[1750184920914,11.85866031,146.02,145.99,6.84978423]
[1750184921242,20.76118352,146.03,145.99,18.70844454]
[1750184921390,20.76118352,146.03,145.99,35.83290511]
[1750184922505,8.90252321,146.03,145.99,35.83290511]
[1750184922911,8.90252321,146.03,145.99,18.70844454]
[1750184926096,8.90252321,146.03,145.99,6.84978423]
[1750184926293,11.85866031,146.02,145.99,6.84978423]
[1750184926726,11.85866031,146.01,145.98,6.84999716]
[1750184926924,6.90214259,145.99,145.98,6.84999716]
[1750184928030,6.90214259,146.0,145.98,6.84999716]
[1750184928513,6.90214259,146.01,145.98,6.84999716]
[1750184928838,11.82971108,146.01,145.98,6.84999716]
[1750184929824,11.82971108,146.0,145.98,6.84999716]
[1750184930813,11.82971108,145.99,145.98,6.84999716]
[1750184930999,11.82971108,146.0,145.98,6.84999716]
[1750184931198,11.82971108,145.99,145.98,6.84999716]
[1750184931832,11.82971108,146.01,145.97,11.82971108]
[1750184932017,11.82971108,146.0,145.96,37.33055204]
[1750184932922,11.82971108,145.99,145.96,25.50084096]
[1750184933313,11.82971108,145.99,145.96,6.8511921]
[1750184934408,11.82971108,146.0,145.96,6.8511921]
[1750184935038,0.14216157,146.02,145.96,18.68090318]
[1750184935332,11.82971108,146.0,145.96,18.68090318]
[1750184936035,11.82971108,146.01,145.97,11.82971108]
[1750184936344,8.90252321,146.03,145.96,23.97917236]
[1750184936506,11.82971108,146.0,145.96,23.97917236]
[1750184937534,11.82971108,146.0,145.96,35.80888344]
[1750184937922,8.90252321,146.03,145.96,35.80888344]
[1750184938143,11.82971108,146.0,145.96,35.80888344]
[1750184938837,8.90252321,146.03,145.98,11.82971108]
[1750184939036,8.90252321,146.03,146.01,11.82971108]
[1750184939421,20.73223429,146.03,145.97,18.64964886]
[1750184939626,20.73223429,146.03,145.99,11.82971108]
[1750184939939,8.90252321,146.03,145.99,11.82971108]
[1750184940141,20.73223429,146.03,146.0,6.84931506]
[1750184940365,11.82971108,146.01,145.98,6.8498593]
[1750184940646,11.82971108,146.0,145.97,6.85052148]
[1750184940811,8.90252321,146.03,145.97,6.85052148]
[1750184941016,11.82971108,146.0,145.97,6.85052148]
[1750184942716,15.75045462,146.03,145.97,6.85052148]
[1750184942915,11.82971108,146.0,145.97,6.85052148]
[1750184943111,11.82971108,145.99,145.97,6.85052148]
[1750184944138,11.82971108,145.98,145.96,6.85101496]
[1750184944315,6.99089146,146.02,145.96,6.85101496]
[1750184944316,11.82971108,145.99,145.96,6.85101496]
[1750184945224,11.82971108,145.99,145.95,13.23148922]
[1750184945543,26.0,146.0,145.96,30.47935994]
[1750184946057,37.82971108,146.0,145.95,25.0612003]
[1750184946558,26.0,146.0,145.96,11.82971108]
[1750184946912,26.0,146.0,145.95,13.23148922]
[1750184947112,26.14216157,146.0,145.95,6.85154696]
[1750184947366,11.82971108,145.99,145.95,6.85154696]
[1750184947728,11.82971108,145.97,145.94,6.8520866]
[1750184947921,26.0,145.95,145.94,6.8520866]
[1750184948248,26.0,145.95,145.94,18.68179768]
[1750184948825,26.0,145.95,145.94,13.75655376]
[1750184949025,26.0,145.95,145.94,6.8520866]
[1750184949511,26.0,145.95,145.94,13.75655376]
[1750184950108,32.90446716,145.98,145.94,13.75655376]
[1750184951219,32.90446716,145.99,145.95,6.90446716]
[1750184952340,6.90446716,145.99,145.95,13.75581514]
[1750184953742,26.0,146.01,145.95,13.75581514]
[1750184953932,6.90446716,145.99,145.95,13.75581514]
[1750184954642,26.0,146.01,145.96,6.90446716]
[1750184954822,26.0,146.01,145.97,6.90446716]
[1750184955026,6.90446716,146.01,145.97,6.90446716]
[1750184955249,6.90446716,146.01,145.95,23.98050179]
[1750184955451,6.90446716,146.0,145.96,6.90446716]
[1750184956040,6.90446716,146.0,145.97,6.85072275]
[1750184956240,6.90446716,146.01,145.97,6.85072275]
[1750184956819,6.90446716,146.0,145.97,6.85072275]
[1750184957236,6.90446716,146.01,145.97,6.85072275]
[1750184957649,6.90446716,146.0,145.97,6.85072275]
[1750184958348,6.90446716,146.0,145.96,6.85100642]
[1750184958520,6.90446716,146.0,145.96,13.75547358]
[1750184959047,6.90446716,145.97,145.95,6.36]
[1750184959348,6.90446716,145.96,145.95,6.36]
[1750184959542,26.0,145.99,145.95,6.36]
[1750184959726,6.90446716,145.98,145.95,13.21158393]
[1750184959923,32.90446716,145.99,145.95,13.26446716]
[1750184960350,32.90446716,145.99,145.95,6.36]
[1750184960555,32.90446716,145.99,145.95,13.26446716]
[1750184960949,32.90446716,145.99,145.95,20.11606954]
[1750184961358,6.90446716,146.0,145.96,6.90446716]
[1750184961544,6.90446716,145.99,145.95,20.11606954]
[1750184962247,6.90446716,145.99,145.95,13.21160238]
[1750184962447,26.0,146.0,145.95,13.21160238]
[1750184962628,6.90446716,145.99,145.95,13.21160238]
[1750184963133,6.90446716,145.97,145.95,6.36]
[1750184964237,6.90446716,145.96,145.9,25.06964886]
[1750184964440,6.90446716,145.96,145.92,6.90446716]
[1750184965750,6.90446716,145.96,145.92,13.75722998]
[1750184966431,6.90446716,145.95,145.91,6.8533728]
[1750184967150,6.90446716,145.95,145.91,13.75783996]
[1750184967758,6.99207729,145.99,145.93,6.85260056]